fUSD/lending_fUSD_20251011
["ID","MTS","AMOUNT","RATE_DAILY","PERIOD"]
[390895314,1760203231112,-151.0,0.000286,30]
[390895315,1760203231144,-151.0,0.000286,30]
[390895316,1760203231176,-263.357394,0.000286,30]
[390895317,1760203231209,-263.357394,0.000286,30]
[390895318,1760203231241,-263.357394,0.000286,30]
[390895319,1760203231278,-263.357394,0.000286,30]
[390895320,1760203231310,-151.0,0.000286,30]
[390895321,1760203231346,-209.908714,0.000286,30]
[390895322,1760203231377,-151.0,0.000286,30]
[390895323,1760203231410,-209.908714,0.000286,30]
[390895324,1760203231443,-151.545032,0.000286,30]
[390895325,1760203231475,-209.908714,0.000286,30]
[390895326,1760203231508,-209.908714,0.000286,30]
[390895327,1760203231541,-190.375075,0.000286,30]
[390895328,1760203231573,-190.375075,0.000286,30]
[390895329,1760203231605,-190.375075,0.000286,30]
[390895330,1760203231637,-190.375075,0.000286,30]
[390895331,1760203231670,-199.592692,0.000286,30]
[390895332,1760203231702,-162.020521,0.000286,30]
[390895333,1760203231735,-162.020521,0.000286,30]
[390895334,1760203231768,-162.020521,0.000286,30]
[390895335,1760203231802,-162.020521,0.000286,30]
[390895336,1760203231834,-1839.675254,0.000286,30]
[390895337,1760203231866,-1839.675254,0.000286,30]
[390895338,1760203231898,-1839.675254,0.000286,30]
[390895339,1760203231929,-1839.675254,0.000286,30]
[390895340,1760203231966,-150.0,0.00028794,120]
[390895341,1760203232003,-1082.31,0.00029,30]
[390895342,1760203232040,-1444.0,0.00029041,120]
[390895344,1760203232077,-50000.0,0.00029335,30]
[390895345,1760203232113,-50000.0,0.00029335,31]
[390895346,1760203232148,-50000.0,0.00029335,32]
[390895347,1760203232182,-50000.0,0.00029335,33]
[390895348,1760203232217,-50000.0,0.00029335,34]
[390895349,1760203232254,-50000.0,0.00029335,35]
[390895350,1760203232288,-50000.0,0.00029335,36]
[390895351,1760203232322,-50000.0,0.00029335,37]
[390895352,1760203232355,-50000.0,0.00029335,38]
[390895353,1760203232387,-50000.0,0.00029335,39]
[390895354,1760203233314,-151.0,0.00029335,30]
[390895355,1760203233359,-1839.675254,0.00029336,30]
[390895356,1760203233384,-1839.675254,0.00029336,30]
[390895357,1760203233409,-1839.675254,0.00029336,30]
[390895358,1760203233434,-1839.67524749,0.00029336,30]
[390895359,1760203233459,-207.653294,0.00029336,30]
[390895360,1760203233485,-207.653294,0.00029336,30]
[390895361,1760203233510,-207.653294,0.00029336,30]
[390895362,1760203233538,-972.77,0.00029336,30]
[390895363,1760203233563,-207.653289,0.00029336,30]
[390895364,1760203233588,-151.0,0.00029336,30]
[390895365,1760203233612,-300.0,0.0002934,41]
[390895366,1760203233637,-152.500345,0.00029356,30]
[390895367,1760203233662,-152.500345,0.00029356,30]
[390895368,1760203233688,-152.500345,0.00029356,30]
[390895369,1760203233712,-152.50034,0.00029356,30]
[390895370,1760203233737,-151.0,0.00029358,30]
[390895371,1760203233763,-170.286635,0.00029358,30]
[390895372,1760203233787,-151.0,0.00029358,30]
[390895373,1760203233813,-151.0,0.00029358,30]
[390895374,1760203233840,-164.42511318,0.00029358,30]
[390895375,1760203233866,-151.0,0.00029358,30]
[390895376,1760203233891,-263.357394,0.00029358,30]
[390895377,1760203233916,-263.357394,0.00029358,30]
[390895378,1760203233942,-263.357394,0.00029358,30]
[390895379,1760203233968,-263.357398,0.00029358,30]
[390895380,1760203233994,-151.0,0.00029358,30]
[390895381,1760203234020,-209.908714,0.00029358,30]
[390895382,1760203234047,-151.0,0.00029358,30]
[390895383,1760203234072,-209.908714,0.00029358,30]
[390895384,1760203234098,-209.908714,0.00029358,30]
[390895385,1760203234124,-209.908723,0.00029358,30]
[390895386,1760203234149,-291.068013,0.00029358,30]
[390895387,1760203234175,-202.26907,0.00029358,30]
[390895388,1760203234201,-202.26907,0.00029358,30]
[390895389,1760203234226,-202.26907,0.00029358,30]
[390895390,1760203234254,-202.26907086,0.00029358,30]
[390895391,1760203234279,-213.402574,0.00029358,30]
[390895392,1760203234303,-213.402574,0.00029358,30]
[390895393,1760203234342,-213.402574,0.00029358,30]
[390895394,1760203234367,-213.40258115,0.00029358,30]
[390895395,1760203234392,-190.375075,0.00029358,30]
[390895396,1760203234417,-190.375075,0.00029358,30]
[390895397,1760203234442,-190.375075,0.00029358,30]
[390895398,1760203234467,-190.37506701,0.00029358,30]
[390895399,1760203234492,-162.020521,0.00029358,30]
[390895400,1760203234517,-162.020521,0.00029358,30]
[390895401,1760203234542,-162.020521,0.00029358,30]
[390895402,1760203234568,-162.020525,0.00029358,30]
[390895403,1760203234602,-475.23572958,0.0003,30]
[390895404,1760203234628,-7592.0,0.0003,36]
[390895405,1760203234654,-4000.0,0.0003,120]
[390895406,1760203234682,-3299.33,0.00030136,120]
[390895407,1760203234709,-3299.33,0.00030136,120]
[390895408,1760203234736,-3299.33,0.00030136,120]
[390895409,1760203234763,-3299.33,0.00030136,120]
[390895410,1760203234789,-3299.33,0.00030136,120]
[390895411,1760203234815,-3299.33,0.00030136,120]
[390895412,1760203234840,-3299.33,0.00030136,120]
[390895413,1760203234866,-3299.33,0.00030136,120]
[390895414,1760203234892,-3299.33,0.00030136,120]
[390895415,1760203234917,-3299.33,0.00030136,120]
[390895416,1760203234944,-3299.33,0.00030136,120]
[390895417,1760203234969,-3299.33,0.00030136,120]
[390895418,1760203234996,-3299.33,0.00030136,120]
[390895419,1760203235022,-3299.33,0.00030136,120]
[390895420,1760203235153,-3299.33,0.00030136,120]
[390895421,1760203235179,-3299.33,0.00030136,120]
[390895422,1760203235204,-3299.33,0.00030136,120]
[390895423,1760203235229,-3299.33,0.00030136,120]
[390895424,1760203235256,-3299.33,0.00030136,120]
[390895425,1760203235282,-3299.33,0.00030136,120]
[390895426,1760203235308,-3299.33,0.00030136,120]
[390895427,1760203235334,-3299.33,0.00030136,120]
[390895428,1760203235360,-3299.33,0.00030136,120]
[390895429,1760203235385,-3299.51,0.00030136,120]
[390895430,1760203235410,-500.0,0.00030136,120]
[390895431,1760203235435,-500.0,0.00030136,120]
[390895432,1760203235460,-500.0,0.00030136,120]
[390895433,1760203235485,-500.0,0.00030136,120]
[390895434,1760203235510,-500.0,0.00030136,120]
[390895435,1760203235535,-500.0,0.00030136,120]
[390895436,1760203235560,-500.0,0.00030136,120]
[390895437,1760203235585,-500.0,0.00030136,120]
[390895438,1760203235610,-500.0,0.00030136,120]
[390895439,1760203235635,-471.62999999,0.00030136,120]
[390895440,1760203235659,-1739.95,0.00030162,30]
[390895441,1760203235687,-565.12,0.000308,30]
[390895442,1760203235712,-475.23572958,0.000309,120]
[390895443,1760203235738,-475.23572958,0.000309,30]
[390895444,1760203235764,-7782.96,0.00031,30]
[390895445,1760203235790,-151.0,0.00031,30]
[390895446,1760203235817,-255.64158365,0.0003178,30]
[390895447,1760203235843,-475.23572958,0.000318,120]
[390895448,1760203235868,-475.23572958,0.000318,30]
[390895449,1760203235896,-1130.45585335,0.00032267,120]
[390895450,1760203235921,-150.0,0.00032328,30]
[390895451,1760203235948,-150.0,0.00032458,120]
[390895452,1760203235976,-8352.3,0.00032632,67]
[390895453,1760203236004,-1687.5,0.00032876,120]
[390895454,1760203236030,-150.0,0.00032876,30]
[390895455,1760203236059,-150.0,0.00033424,30]
[390895456,1760203236088,-1687.5,0.00033972,120]
[390895457,1760203236113,-150.0,0.00033972,30]
[390895458,1760203236138,-1444.0,0.00033973,120]
[390895459,1760203236164,-7782.96,0.00034,30]
[390895460,1760203236192,-150.0,0.0003452,30]
[390895461,1760203236218,-2689.2,0.00034989,37]
[390895462,1760203236245,-2500.0,0.00035,30]
[390895463,1760203236277,-856.0,0.00035,30]
[390895464,1760203236303,-152.2,0.00035,120]
[390895465,1760203236328,-22500.0,0.00035,120]
[390895466,1760203236355,-2295246.16926342,0.0003504,120]
[390895467,1760203242018,-151.0,0.00029335,30]
[390895468,1760203242058,-157.694166,0.00029336,30]
[390895469,1760203242119,-487157.88385412,0.0003504,120]
[390895470,1760203242148,-22500.0,0.00035062,120]
[390895471,1760203242177,-1687.5,0.00035068,120]
[390895472,1760203242206,-150.0,0.00035068,30]
[390895473,1760203242232,-22477.67,0.00035125,120]
[390895474,1760203242260,-152.0,0.00035202,30]
[390895475,1760203242286,-9111.6,0.00035263,97]
[390895476,1760203242312,-505.55,0.000353,30]
[390895477,1760203242340,-856.0,0.00035376,30]
[390895478,1760203242368,-500.0,0.0003558,120]
[390895479,1760203242396,-150.0,0.00035616,30]
[390895480,1760203242423,-1109.35078606,0.00035616,30]
[390895481,1760203242449,-203.85202451,0.00035638,120]
[390895482,1760203242475,-1739.95,0.00035639,30]
[390895483,1760203242501,-856.0,0.0003565,30]
[390895484,1760203242529,-150.0,0.00035666,120]
[390895485,1760203242556,-1000.0,0.00035667,60]
[390895486,1760203242581,-152.0,0.00035671,31]
[390895487,1760203242607,-173.0,0.000357,120]
[390895488,1760203242634,-1000.0,0.00035767,60]
[390895489,1760203242663,-1338.08587,0.00035888,30]
[390895490,1760203242688,-210000.0,0.00035888,30]
[390895491,1760203242716,-152.0,0.000359,120]
[390895492,1760203242827,-856.0,0.00035924,30]
[390895493,1760203242852,-1000.0,0.0003595,90]
[390895494,1760203242878,-150.0,0.00035952,120]
[390895495,1760203242904,-1000.0,0.00035967,60]
[390895496,1760203242929,-2000.0,0.00036,36]
[390895497,1760203242956,-800.0,0.00036,120]
[390895498,1760203242981,-1074.0294116,0.00036,120]
[390895499,1760203243007,-483.0,0.00036,30]
[390895500,1760203243035,-150.0,0.00036047,120]
[390895501,1760203243062,-150.0,0.00036059,120]
[390895502,1760203243088,-1000.0,0.00036067,60]
[390895503,1760203243116,-1338.08587,0.00036088,30]
[390895504,1760203243154,-1687.5,0.00036164,120]
[390895505,1760203243180,-1000.0,0.00036167,60]
[390895506,1760203243207,-856.0,0.00036198,30]
[390895507,1760203243233,-150.0,0.00036213,120]
[390895508,1760203243262,-1000.0,0.00036267,60]
[390895509,1760203243287,-1338.08587,0.00036288,30]
[390895510,1760203243313,-1000.0,0.00036367,60]
[390895511,1760203243344,-173.0,0.000364,120]
[390895512,1760203243370,-500.0,0.00036463,120]
[390895513,1760203243396,-483.0,0.00036464,30]
[390895514,1760203243423,-1000.0,0.00036467,60]
[390895515,1760203243450,-856.0,0.00036472,30]
[390895516,1760203243475,-1338.08587,0.00036488,30]
[390895517,1760203243501,-30000.0,0.000365,120]
[390895518,1760203243528,-55000.0,0.000365,120]
[390895519,1760203243556,-150.0,0.00036515,120]
[390895520,1760203243581,-160.0,0.00036519,42]
[390895521,1760203243606,-151.0,0.00036519,42]
[390895522,1760203243630,-500.0,0.00036519,42]
[390895523,1760203243655,-151.0,0.00036519,42]
[390895524,1760203243681,-500.0,0.00036519,42]
[390895525,1760203243706,-601.3376128,0.00036519,42]
[390895526,1760203243731,-500.0,0.00036519,42]
[390895527,1760203243756,-300.0,0.00036519,42]
[390895528,1760203243782,-7965.41053268,0.00036519,42]
[390895529,1760203243809,-151.0,0.00036519,42]
[390895530,1760203243835,-174.61919141,0.00036519,42]
[390895531,1760203243860,-500.0,0.00036519,42]
[390895532,1760203243885,-500.0,0.00036519,42]
[390895533,1760203243911,-578.20924308,0.00036519,42]
[390895534,1760203243937,-1000.0,0.00036519,42]
[390895535,1760203243965,-1000.0,0.00036519,42]
[390895536,1760203243990,-500.0,0.00036519,42]
[390895537,1760203244016,-231.28369723,0.00036519,42]
[390895538,1760203244043,-500.0,0.00036519,42]
[390895539,1760203244070,-1000.0,0.00036519,42]
[390895540,1760203244098,-1000.0,0.00036567,60]
[390895541,1760203244125,-1000.0,0.00036667,60]
[390895542,1760203244152,-1338.08587,0.00036688,30]
[390895543,1760203244176,-565.4446666,0.000367,120]
[390895544,1760203244202,-184.94612053,0.000367,30]
[390895545,1760203244227,-150.0,0.000367,30]
[390895546,1760203244255,-1399.85996517,0.000367,30]
[390895547,1760203244282,-1000.0,0.00036767,60]
[390895548,1760203244308,-856.0,0.00036857,30]
[390895549,1760203244334,-1000.0,0.00036867,60]
[390895550,1760203244360,-150.0,0.0003687,120]
[390895551,1760203244385,-1338.08587,0.00036888,30]
[390895552,1760203244412,-150.0,0.00036889,120]
[390895553,1760203244439,-152.0,0.000369,120]
[390895554,1760203244468,-1000.0,0.00036967,60]
[390895555,1760203244495,-10000.0,0.00036986,120]
[390895556,1760203244520,-400.0,0.0003699,120]
[390895557,1760203244547,-121500.29855804,0.00037,120]
[390895558,1760203244574,-731832.16966158,0.00037,120]
[390895559,1760203244600,-19512.0,0.00037,120]
[390895560,1760203244627,-1000.0,0.00037,90]
[390895561,1760203244652,-61200.44470245,0.00037,30]
[390895562,1760203244678,-10914.0,0.00037,120]
[390895563,1760203244704,-5456.0,0.00037,120]
[390895564,1760203244732,-7782.96,0.00037,30]
[390895565,1760203244760,-4493.0,0.00037,120]
[390895566,1760203244787,-9110.58386514,0.00037,120]
[390895567,1760203244812,-151.0,0.00037,120]
[390895568,1760203244839,-1000.0,0.00037067,60]
[390895569,1760203244864,-1338.08587,0.00037088,30]
[390895570,1760203244889,-173.0,0.000371,120]
[390895571,1760203244915,-1000.0,0.00037167,60]
[390895572,1760203244942,-203.58479562,0.000372,120]
[390895573,1760203244969,-1687.5,0.0003726,120]
[390895574,1760203244996,-1000.0,0.00037267,60]
[390895575,1760203245022,-1338.08587,0.00037288,30]
[390895576,1760203245048,-500.0,0.00037345,120]
[390895577,1760203245074,-1000.0,0.00037367,60]
[390895578,1760203245100,-150.0,0.00037377,120]
[390895579,1760203245128,-1000.0,0.00037467,60]
[390895580,1760203245153,-1338.08587,0.00037488,30]
[390895581,1760203245179,-30000.0,0.000375,120]
[390895582,1760203245204,-8870.0,0.000375,120]
[390895583,1760203245231,-1000.0,0.00037567,60]
[390895584,1760203245260,-1000.0,0.00037667,60]
[390895585,1760203245286,-1338.08587,0.00037688,30]
[390895586,1760203245315,-150.0,0.00037715,120]
[390895587,1760203245342,-1000.0,0.00037767,60]
[390895588,1760203245369,-173.0,0.000378,120]
[390895589,1760203245396,-1338.08587,0.00037888,30]
[390895590,1760203245422,-19740.5,0.00037895,117]
[390895591,1760203245448,-152.0,0.000379,120]
[390895592,1760203245474,-30000.0,0.0003798,30]
[390895593,1760203245500,-150.0,0.00037981,120]
[390895594,1760203245524,-765.58359343,0.00037999,120]
[390895595,1760203245716,-483.0,0.00038,30]
[390895596,1760203245744,-5200.0,0.00038,60]
[390895597,1760203245775,-30000.0,0.00038,120]
[390895598,1760203245801,-21807.31667026,0.00038,60]
[390895599,1760203245828,-2009.0,0.00038,60]
[390895600,1760203245853,-100000.0,0.00038,30]
[390895601,1760203245879,-19988.70245329,0.00038,120]
[390895602,1760203245905,-1864.09957215,0.00038,120]
[390895603,1760203245930,-272.32193042,0.00038,120]
[390895604,1760203245957,-678000.0,0.00038,120]
[390895605,1760203245984,-1000.0,0.00038,90]
[390895606,1760203246010,-800.0,0.00038,120]
[390895607,1760203246036,-49183.48,0.00038,120]
[390895608,1760203246062,-500.0,0.00038,120]
[390895609,1760203246088,-800.0,0.00038,120]
[390895610,1760203246114,-500.0,0.00038,120]
[390895611,1760203246140,-500.0,0.00038,120]
[390895612,1760203246167,-315.0,0.00038,120]
[390895613,1760203246194,-150.0,0.00038009,120]
[390895614,1760203246235,-1338.08587,0.00038088,30]
[390895615,1760203246269,-365.85535,0.00038137,30]
[390895616,1760203246297,-905.60998861,0.000382,120]
[390895617,1760203246326,-713.83681959,0.00038227,120]
[390895618,1760203246356,-1338.08587,0.00038288,30]
[390895619,1760203246383,-150.0,0.00038297,120]
[390895620,1760203246409,-856.0,0.00038331,30]
[390895621,1760203246436,-160.0,0.00038349,30]
[390895622,1760203246462,-151.0,0.00038349,30]
[390895623,1760203246488,-151.0,0.00038349,30]
[390895624,1760203246514,-500.0,0.00038349,30]
[390895625,1760203246543,-500.0,0.00038349,30]
[390895626,1760203246568,-579.88197956,0.00038349,30]
[390895627,1760203246595,-500.0,0.00038349,30]
[390895628,1760203246622,-300.0,0.00038349,30]
[390895629,1760203246648,-7681.20591386,0.00038349,30]
[390895630,1760203246676,-151.0,0.00038349,30]
[390895631,1760203246708,-168.3888056,0.00038349,30]
[390895633,1760203246737,-500.0,0.00038349,30]
[390895634,1760203246765,-500.0,0.00038349,30]
[390895635,1760203246794,-557.5788265,0.00038349,30]
[390895636,1760203246822,-1000.0,0.00038349,30]
[390895637,1760203246849,-1000.0,0.00038349,30]
[390895638,1760203246876,-500.0,0.00038349,30]
[390895639,1760203246903,-223.0315306,0.00038349,30]
[390895640,1760203246933,-500.0,0.00038349,30]
[390895641,1760203246960,-220.0,0.00038349,30]
[390895642,1760203246990,-1000.0,0.00038349,30]
[390895643,1760203247019,-151.0,0.00038355,30]
[390895644,1760203247046,-160.0,0.00038355,30]
[390895645,1760203247074,-151.0,0.00038355,30]
[390895646,1760203247102,-500.0,0.00038355,30]
[390895647,1760203247129,-500.0,0.00038355,30]
[390895648,1760203247156,-559.19188,0.00038355,30]
[390895649,1760203247190,-500.0,0.00038355,30]
[390895650,1760203247218,-300.0,0.00038355,30]
[390895651,1760203247249,-7407.141672,0.00038355,30]
[390895652,1760203247285,-151.0,0.00038355,30]
[390895653,1760203247316,-162.380719,0.00038355,30]
[390895654,1760203247344,-500.0,0.00038355,30]
[390895655,1760203247372,-500.0,0.00038355,30]
[390895656,1760203247399,-537.6845,0.00038355,30]
[390895657,1760203247427,-1000.0,0.00038355,30]
[390895658,1760203247454,-1000.0,0.00038355,30]
[390895659,1760203247480,-500.0,0.00038355,30]
[390895660,1760203247507,-215.0738,0.00038355,30]
[390895661,1760203247536,-500.0,0.00038355,30]
[390895662,1760203247564,-220.0,0.00038355,30]
[390895663,1760203247593,-1000.0,0.00038355,30]
[390895664,1760203247620,-500.0,0.00038356,30]
[390895665,1760203247647,-151.776988,0.00038356,30]
[390895666,1760203247681,-1003.12,0.00038356,30]
[390895667,1760203247711,-403.28254928,0.00038356,30]
[390895668,1760203247740,-1698.26,0.00038356,30]
[390895669,1760203247769,-500.0,0.00038356,30]
[390895670,1760203247798,-500.0,0.00038356,30]
[390895671,1760203247827,-500.0,0.00038356,30]
[390895672,1760203247857,-500.0,0.00038356,30]
[390895673,1760203247886,-500.0,0.00038356,30]
[390895674,1760203247914,-500.0,0.00038356,30]
[390895675,1760203247942,-500.0,0.00038356,30]
[390895676,1760203247970,-500.0,0.00038356,30]
[390895677,1760203247999,-500.0,0.00038356,30]
[390895678,1760203248029,-500.0,0.00038356,30]
[390895679,1760203248057,-500.0,0.00038356,30]
[390895680,1760203248085,-500.0,0.00038356,30]
[390895681,1760203248113,-500.0,0.00038356,30]
[390895682,1760203248147,-500.0,0.00038356,30]
[390895683,1760203248175,-500.0,0.00038356,30]
[390895684,1760203248208,-500.0,0.00038356,30]
[390895685,1760203248236,-483.80719062,0.00038356,30]
[390895686,1760203248780,-733.75,0.00038356,30]
[390895687,1760203248810,-500.0,0.00038356,30]
[390895688,1760203248838,-500.0,0.00038356,30]
[390895689,1760203248869,-723.26,0.00038356,30]
[390895690,1760203248898,-1099.68,0.00038356,30]
[390895691,1760203248924,-500.0,0.00038356,30]
[390895692,1760203248954,-500.0,0.00038356,30]
[390895693,1760203248981,-173.85944475,0.00038356,30]
[390895694,1760203249008,-643.08,0.00038356,30]
[390895695,1760203249035,-500.0,0.00038356,30]
[390895696,1760203249063,-500.0,0.00038356,30]
[390895697,1760203249091,-689.29,0.00038356,30]
[390895698,1760203249118,-1067.28,0.00038356,30]
[390895699,1760203249150,-500.0,0.00038356,30]
[390895700,1760203249180,-500.0,0.00038356,30]
[390895701,1760203249208,-500.0,0.00038356,30]
[390895702,1760203249238,-2005.21,0.00038356,30]
[390895703,1760203249272,-500.0,0.00038356,30]
[390895704,1760203249302,-500.0,0.00038356,30]
[390895705,1760203249334,-500.0,0.00038356,30]
[390895706,1760203249361,-387.33005852,0.00038356,30]
[390895707,1760203249390,-500.0,0.00038356,30]
[390895708,1760203249419,-500.0,0.00038356,30]
[390895709,1760203249449,-506.10592977,0.00038356,30]
[390895710,1760203249476,-304.51035505,0.00038356,30]
[390895711,1760203249504,-561.08,0.00038356,30]
[390895712,1760203249533,-500.0,0.00038356,30]
[390895713,1760203249562,-500.0,0.00038356,30]
[390895714,1760203249589,-500.0,0.00038356,30]
[390895715,1760203249622,-500.0,0.00038356,30]
[390895716,1760203249656,-1458.59,0.00038356,30]
[390895717,1760203249686,-500.0,0.00038356,30]
[390895718,1760203249715,-500.0,0.00038356,30]
[390895719,1760203249744,-500.0,0.00038356,30]
[390895720,1760203249773,-500.0,0.00038356,30]
[390895721,1760203249805,-1961.36,0.00038356,30]
[390895722,1760203249838,-500.0,0.00038356,30]
[390895723,1760203249866,-758.66,0.00038356,30]
[390895724,1760203249894,-500.0,0.00038356,30]
[390895725,1760203249924,-500.0,0.00038356,30]
[390895726,1760203249954,-500.0,0.00038356,30]
[390895727,1760203249982,-1447.03,0.00038356,30]
[390895728,1760203250010,-500.0,0.00038356,30]
[390895729,1760203250039,-500.0,0.00038356,30]
[390895730,1760203250074,-500.0,0.00038356,30]
[390895731,1760203250120,-500.0,0.00038356,30]
[390895732,1760203250155,-906.11,0.00038356,30]
[390895733,1760203250187,-500.0,0.00038356,30]
[390895734,1760203250217,-500.0,0.00038356,30]
[390895735,1760203250248,-618.04,0.00038356,30]
[390895736,1760203250280,-500.0,0.00038356,30]
[390895737,1760203250309,-500.0,0.00038356,30]
[390895738,1760203250337,-500.0,0.00038356,30]
[390895739,1760203250365,-500.0,0.00038356,30]
[390895740,1760203250393,-500.0,0.00038356,30]
[390895741,1760203250420,-500.0,0.00038356,30]
[390895742,1760203250449,-500.0,0.00038356,30]
[390895743,1760203250477,-500.0,0.00038356,30]
[390895744,1760203250506,-500.0,0.00038356,30]
[390895745,1760203250534,-611.61,0.00038356,30]
[390895746,1760203250562,-500.0,0.00038356,30]
[390895747,1760203250590,-500.0,0.00038356,30]
[390895748,1760203250620,-500.0,0.00038356,30]
[390895749,1760203250647,-500.0,0.00038356,30]
[390895750,1760203250674,-500.0,0.00038356,30]
[390895751,1760203250703,-500.0,0.00038356,30]
[390895752,1760203250731,-500.0,0.00038356,30]
[390895753,1760203250759,-500.0,0.00038356,30]
[390895754,1760203250784,-511.45,0.00038356,30]
[390895755,1760203250811,-500.0,0.00038356,30]
[390895756,1760203250837,-500.0,0.00038356,30]
[390895757,1760203250864,-500.0,0.00038356,30]
[390895758,1760203251055,-500.0,0.00038356,30]
[390895759,1760203251083,-332.47953197,0.00038356,30]
[390895760,1760203251109,-500.0,0.00038356,30]
[390895761,1760203251136,-1522.3,0.00038356,30]
[390895762,1760203251164,-369.47278255,0.00038356,30]
[390895763,1760203263547,-711.32019212,0.00035,30]
[390895764,1760203263585,-300.0,0.00036437,79]
[390895765,1760203263613,-150.0,0.000367,30]
[390895766,1760203263658,-130.52721745,0.00038356,30]
[390895767,1760203263685,-500.0,0.00038356,30]
[390895768,1760203263713,-500.0,0.00038356,30]
[390895769,1760203263740,-500.0,0.00038356,30]
[390895770,1760203263767,-500.0,0.00038356,30]
[390895771,1760203263793,-1648.54,0.00038356,30]
[390895772,1760203263820,-631.78,0.00038356,30]
[390895773,1760203263846,-696.95,0.00038356,30]
[390895774,1760203263873,-500.0,0.00038356,30]
[390895775,1760203263898,-500.0,0.00038356,30]
[390895776,1760203263925,-500.0,0.00038356,30]
[390895777,1760203263951,-847.96,0.00038356,30]
[390895778,1760203263978,-460.0,0.00038356,30]
[390895779,1760203264004,-500.0,0.00038356,30]
[390895780,1760203264030,-504.64,0.00038356,30]
[390895781,1760203264055,-500.0,0.00038356,30]
[390895782,1760203264081,-1149.54,0.00038356,30]
[390895783,1760203264106,-500.0,0.00038356,30]
[390895784,1760203264131,-500.0,0.00038356,30]
[390895785,1760203264156,-500.0,0.00038356,30]
[390895786,1760203264181,-500.0,0.00038356,30]
[390895787,1760203264206,-500.0,0.00038356,30]
[390895788,1760203264231,-500.0,0.00038356,30]
[390895789,1760203264259,-500.0,0.00038356,30]
[390895790,1760203264285,-500.0,0.00038356,30]
[390895791,1760203264310,-500.0,0.00038356,30]
[390895792,1760203264336,-500.0,0.00038356,30]
[390895793,1760203264362,-500.0,0.00038356,30]
[390895794,1760203264386,-500.0,0.00038356,30]
[390895795,1760203264412,-560.79,0.00038356,30]
[390895796,1760203264438,-551.19,0.00038356,30]
[390895797,1760203264464,-500.0,0.00038356,30]
[390895798,1760203264490,-500.0,0.00038356,30]
[390895799,1760203264515,-1226.06,0.00038356,30]
[390895800,1760203264541,-500.0,0.00038356,30]
[390895801,1760203264567,-747.48,0.00038356,30]
[390895802,1760203264592,-500.0,0.00038356,30]
[390895803,1760203264617,-500.0,0.00038356,30]
[390895804,1760203264642,-500.0,0.00038356,30]
[390895805,1760203264665,-639.88,0.00038356,30]
[390895806,1760203264690,-500.0,0.00038356,30]
[390895807,1760203264717,-500.0,0.00038356,30]
[390895808,1760203264742,-500.0,0.00038356,30]
[390895809,1760203264769,-500.0,0.00038356,30]
[390895810,1760203264794,-500.0,0.00038356,30]
[390895811,1760203264822,-500.0,0.00038356,30]
[390895812,1760203264848,-500.0,0.00038356,30]
[390895813,1760203264873,-500.0,0.00038356,30]
[390895814,1760203264899,-500.0,0.00038356,30]
[390895815,1760203264925,-500.0,0.00038356,30]